bitfinex-derivatives/quotes_BTCF0:USTF0_20250505
["timestamp","ask_amount","ask_price","bid_price","bid_amount"]
[1746440045290,0.78633995,94524.0,94523.0,0.045]
[1746440046108,0.78633995,94524.0,94523.0,0.165]
[1746440048096,0.78633995,94524.0,94523.0,0.045]
[1746440049101,0.78633995,94524.0,94523.0,0.165]
[1746440062603,0.85141995,94524.0,94523.0,0.165]
[1746440063902,0.81881995,94524.0,94523.0,0.165]
[1746440064411,0.81881995,94524.0,94523.0,0.1982]
[1746440066306,0.85001995,94524.0,94523.0,0.1982]
[1746440066510,0.85001995,94524.0,94523.0,0.165]
[1746440071216,0.78861995,94524.0,94523.0,0.165]
[1746440072417,0.81991995,94524.0,94523.0,0.165]
[1746440075921,0.81991995,94524.0,94523.0,0.15566407]
[1746440079121,0.45911995,94524.0,94523.0,0.15566407]
[1746440079413,0.81991995,94524.0,94523.0,0.15566407]
[1746440080126,0.45911995,94524.0,94523.0,0.15566407]
[1746440080311,0.81991995,94524.0,94523.0,0.15566407]
[1746440081021,0.45911995,94524.0,94523.0,0.15566407]
[1746440081220,0.81991995,94524.0,94523.0,0.15566407]
[1746440082421,0.85001995,94524.0,94523.0,0.15566407]
[1746440084725,0.78493995,94524.0,94523.0,0.15566407]
[1746440085022,0.84997995,94524.0,94523.0,0.15566407]
[1746440088628,0.81987995,94524.0,94523.0,0.15566407]
[1746440089023,0.75787995,94524.0,94523.0,0.36724217]
[1746440089227,0.75787995,94524.0,94523.0,0.15566407]
[1746440089914,0.75787995,94524.0,94523.0,0.36724217]
[1746440091723,0.79017995,94524.0,94523.0,0.36724217]
[1746440096333,0.72513995,94524.0,94523.0,0.36724217]
[1746440098739,0.72513995,94524.0,94523.0,0.15566407]
[1746440099039,0.72513995,94524.0,94523.0,0.36724217]
[1746440100540,0.69283995,94524.0,94523.0,0.15566407]
[1746440100837,0.72303995,94524.0,94523.0,0.36724217]
[1746440102533,0.72303995,94524.0,94523.0,0.36679232]
[1746440102740,0.75513995,94524.0,94523.0,0.36679232]
[1746440104644,0.75513995,94524.0,94523.0,0.15521422]
[1746440104939,0.75513995,94524.0,94523.0,0.17786837]
[1746440105141,0.75513995,94524.0,94523.0,0.38944647]
[1746440106440,0.75513995,94524.0,94523.0,0.17786837]
[1746440107040,0.75513995,94524.0,94523.0,0.38944647]
[1746440114449,0.39433995,94524.0,94523.0,0.38944647]
[1746440114655,0.75513995,94524.0,94523.0,0.38944647]
[1746440114855,0.75513995,94524.0,94523.0,0.14596837]
[1746440115257,0.75513995,94524.0,94523.0,0.35754647]
[1746440116252,0.75513995,94524.0,94523.0,0.14596837]
[1746440118357,0.39433995,94524.0,94523.0,0.14596837]
[1746440118545,0.39433995,94524.0,94523.0,0.35754647]
[1746440118750,0.75513995,94524.0,94523.0,0.35754647]
[1746440119157,0.75513995,94524.0,94523.0,0.3315781]
[1746440119359,0.75513995,94524.0,94523.0,0.12]
[1746440126559,0.69283995,94524.0,94523.0,0.3315781]
[1746440126764,0.68217189,94524.0,94523.0,0.3949781]
[1746440126965,0.68217189,94524.0,94523.0,0.4251781]
[1746440127964,0.72301577,94524.0,94523.0,0.4251781]
[1746440128366,0.36221577,94524.0,94523.0,0.4251781]
[1746440130569,0.33191577,94524.0,94523.0,0.4251781]
[1746440136675,0.36461577,94524.0,94523.0,0.4251781]
[1746440141473,0.39481577,94524.0,94523.0,0.4251781]
[1746440149488,0.36461577,94524.0,94523.0,0.4251781]
[1746440150883,0.39711577,94524.0,94523.0,0.4251781]
[1746440158694,0.43021577,94524.0,94523.0,0.3948781]
[1746440158990,0.43021577,94524.0,94523.0,0.3617781]
[1746440166290,0.79101577,94524.0,94523.0,0.3617781]
[1746440173999,0.43021577,94524.0,94523.0,0.3617781]
[1746440174198,0.79101577,94524.0,94523.0,0.3617781]
[1746440181303,0.85589577,94524.0,94523.0,0.3617781]
[1746440181605,0.85589577,94524.0,94523.0,0.1502]
[1746440184608,0.85589577,94524.0,94523.0,0.3617781]
[1746440191610,0.85589577,94524.0,94523.0,0.1502]
[1746440193313,0.85589577,94524.0,94523.0,0.3617781]
[1746440194818,0.89068796,94524.0,94523.0,0.3617781]
[1746440197121,0.79101577,94524.0,94523.0,0.3617781]
[1746440204137,0.89068796,94524.0,94523.0,0.3617781]
[1746440204329,0.89068796,94524.0,94523.0,0.1502]
[1746440205435,0.52988796,94524.0,94523.0,0.1502]
[1746440205635,0.89068796,94524.0,94523.0,0.3617781]
[1746440208739,0.52988796,94524.0,94523.0,0.3617781]
[1746440208938,0.89068796,94524.0,94523.0,0.3617781]
[1746440211940,0.89068796,94524.0,94523.0,0.3934781]
[1746440213445,0.79101577,94524.0,94523.0,0.1819]
[1746440213744,0.79101577,94524.0,94523.0,0.3617781]
[1746440214144,0.43021577,94524.0,94523.0,0.3617781]
[1746440214337,0.79101577,94524.0,94523.0,0.3617781]
[1746440214643,0.79101577,94524.0,94523.0,0.1502]
[1746440216345,0.87807936,94524.0,94523.0,0.1502]
[1746440217733,0.51727936,94524.0,94523.0,0.1502]
[1746440217939,0.87807936,94524.0,94523.0,0.1502]
[1746440221555,0.66650126,94524.0,94493.0,0.3608]
[1746440221847,0.2116161,94506.0,94505.0,0.0314]
[1746440222839,0.2730161,94506.0,94505.0,0.0314]
[1746440223045,0.2730161,94506.0,94505.0,0.0614]
[1746440223250,0.2730161,94506.0,94505.0,0.1814]
[1746440224042,0.2750161,94506.0,94505.0,0.1814]
[1746440224548,0.2770161,94506.0,94505.0,0.1814]
[1746440225750,0.2770161,94506.0,94505.0,0.2115]
[1746440227041,0.2770161,94506.0,94505.0,0.4231184]
[1746440228151,0.2462161,94506.0,94505.0,0.4231184]
[1746440229356,0.2156161,94506.0,94505.0,0.4231184]
[1746440239763,0.2484161,94506.0,94505.0,0.4231184]
[1746440243059,0.2484161,94506.0,94505.0,0.12]
[1746440244058,0.2484161,94506.0,94505.0,0.3316184]
[1746440244262,0.2484161,94506.0,94505.0,0.12]
[1746440249067,0.317515,94482.0,94481.0,0.21166]
[1746440249267,0.2645969,94482.0,94481.0,0.21166]
[1746440249468,0.2645969,94482.0,94481.0,0.3175]
[1746440250060,0.2645969,94482.0,94481.0,0.381]
[1746440250269,0.2645969,94482.0,94481.0,0.501]
[1746440250664,0.2675969,94482.0,94481.0,0.501]
[1746440251062,0.2705969,94482.0,94481.0,0.501]
[1746440253259,0.2705969,94482.0,94481.0,0.1835]
[1746440253464,0.34275895,94482.0,94481.0,0.1835]
[1746440254068,0.34275895,94482.0,94481.0,0.3630721]
[1746440254266,0.34275895,94482.0,94481.0,0.12]
[1746440254673,0.40783895,94482.0,94481.0,0.12]
[1746440255068,0.40783895,94482.0,94481.0,0.3316721]
[1746440256177,0.40783895,94482.0,94481.0,0.12]
[1746440257270,0.40783895,94482.0,94481.0,0.3316721]
[1746440257874,0.40783895,94482.0,94481.0,0.12]
[1746440258274,0.2116833,94476.0,94465.0,0.0529266]
[1746440258461,0.2116833,94476.0,94461.0,0.3608]
[1746440258462,0.5724833,94476.0,94462.0,0.0304]
[1746440258668,0.6224833,94476.0,94464.0,0.0529274]
[1746440258970,0.72832412,94476.0,94470.0,0.2116961]
[1746440259169,0.79112412,94476.0,94475.0,0.12105848]
[1746440259374,0.79412412,94476.0,94475.0,0.12105848]
[1746440260172,0.79712412,94476.0,94475.0,0.12105848]
[1746440260772,0.79712412,94476.0,94475.0,0.33274408]
[1746440263679,0.79712412,94476.0,94475.0,0.12105848]
[1746440265574,0.79712412,94476.0,94475.0,0.33274408]
[1746440265968,0.79712412,94476.0,94475.0,0.12105848]
[1746440266478,0.79712412,94476.0,94475.0,0.33274408]
[1746440266770,0.79712412,94476.0,94475.0,0.12105848]
[1746440267879,0.79712412,94476.0,94475.0,0.33274408]
[1746440268179,0.79712412,94476.0,94475.0,0.12105848]
[1746440268378,0.79712412,94476.0,94475.0,0.33274408]
[1746440269083,0.79712412,94476.0,94475.0,0.12105848]
[1746440269480,0.0377,94476.0,94475.0,0.33274408]
[1746440269783,0.006,94476.0,94475.0,0.33274408]
[1746440270474,0.2176833,94476.0,94475.0,0.42994408]
[1746440277377,0.2485833,94476.0,94475.0,0.42994408]
[1746440279078,0.2485833,94476.0,94475.0,0.36404408]
[1746440279283,0.2799833,94476.0,94475.0,0.36404408]
[1746440280992,0.2485833,94476.0,94475.0,0.36404408]
[1746440282484,0.43658357,94476.0,94475.0,0.36404408]
[1746440285979,0.43658357,94476.0,94475.0,0.35411322]
[1746440288190,0.79738357,94476.0,94475.0,0.35411322]
[1746440292190,0.79738357,94476.0,94475.0,0.34418237]
[1746440292990,0.79738357,94476.0,94475.0,0.31288237]
[1746440293184,0.79738357,94476.0,94475.0,0.10119677]
[1746440298804,0.69743616,94476.0,94475.0,0.10119677]
[1746440300903,0.69743616,94476.0,94475.0,0.09126539]
[1746440301211,0.6093833,94476.0,94475.0,0.09126539]
[1746440312502,0.2485833,94476.0,94475.0,0.09126539]
[1746440312702,0.6093833,94476.0,94475.0,0.09126539]
[1746440316204,0.6093833,94476.0,94475.0,0.08133388]
[1746440330113,0.6093833,94476.0,94475.0,0.11353388]
[1746440331519,0.6093833,94476.0,94475.0,0.14593388]
[1746440333622,0.69743616,94476.0,94475.0,0.14593388]
[1746440338122,0.69743616,94476.0,94475.0,0.13600227]
[1746440338830,0.66653616,94476.0,94475.0,0.34768787]
[1746440339822,0.5784833,94476.0,94475.0,0.34768787]
[1746440345927,0.2176833,94476.0,94475.0,0.34768787]
[1746440346129,0.5784833,94476.0,94475.0,0.34768787]
[1746440351129,0.6105833,94476.0,94475.0,0.28308787]
[1746440351325,0.6413833,94476.0,94475.0,0.28308787]
[1746440352126,0.6413833,94476.0,94475.0,0.31588787]
[1746440354635,0.6413833,94476.0,94475.0,0.28308787]
[1746440355530,0.6413833,94476.0,94475.0,0.07140227]
[1746440360131,0.6413833,94476.0,94475.0,0.28308787]
[1746440360633,0.0381,94476.0,94475.0,0.28308787]
[1746440360838,0.006,94476.0,94475.0,0.64388787]
[1746440361338,0.006,94476.0,94475.0,0.70668787]
[1746440362043,0.18818995,94478.0,94477.0,0.2116811]
[1746440362341,0.18818995,94478.0,94477.0,0.4616811]
[1746440362535,0.18818995,94478.0,94477.0,0.5675251]
[1746440363237,0.18818995,94478.0,94477.0,0.4375251]
[1746440363442,0.19118995,94478.0,94477.0,0.4375251]
[1746440363641,0.19418995,94478.0,94477.0,0.6875251]
[1746440364143,0.19418995,94478.0,94477.0,0.7492251]
[1746440365336,0.19418995,94478.0,94477.0,0.4992251]
[1746440365535,0.16720731,94478.0,94477.0,0.4992251]
[1746440369043,0.006,94478.0,94477.0,0.4992251]
[1746440371241,0.006,94478.0,94477.0,1.2208251]
[1746440374548,0.006,94478.0,94477.0,0.6924811]
[1746440375539,0.1012,94478.0,94477.0,0.6924811]
[1746440375740,0.3128789,94478.0,94477.0,0.6924811]
[1746440376948,0.3128789,94478.0,94477.0,0.12]
[1746440377137,0.3128789,94478.0,94477.0,0.3316811]
[1746440381450,0.47384937,94478.0,94477.0,0.3316811]
[1746440383248,0.22907047,94478.0,94477.0,0.3316811]
[1746440383842,0.22907047,94478.0,94477.0,0.3946811]
[1746440384452,0.0681,94478.0,94477.0,0.3946811]
[1746440385457,0.0681,94478.0,94477.0,0.3633811]
[1746440385954,0.0681,94478.0,94477.0,0.3316811]
[1746440398458,0.0375,94478.0,94477.0,0.3316811]
[1746440398658,0.0375,94478.0,94477.0,0.3622811]
[1746440401366,0.006,94478.0,94477.0,0.4681251]
[1746440401568,0.22309452,94483.0,94482.0,0.2116699]
[1746440401866,0.22309452,94483.0,94482.0,0.5724699]
[1746440402263,0.22309452,94483.0,94482.0,0.6924699]
[1746440402566,0.22309452,94483.0,94482.0,0.7547699]
[1746440403468,0.22509452,94483.0,94482.0,0.7557699]
[1746440403760,0.22809452,94483.0,94482.0,0.7557699]
[1746440404361,0.001,94506.0,94487.0,0.0529141]
[1746440404663,0.0326,94505.0,94498.0,0.2116341]
[1746440405262,0.2442204,94505.0,94498.0,0.3316341]
[1746440405466,0.2705384,94499.0,94498.0,0.35330599]
[1746440406062,0.2705384,94499.0,94498.0,0.38490599]
[1746440406261,0.27835429,94499.0,94498.0,0.38490599]
[1746440406575,0.28035429,94499.0,94498.0,0.38490599]
[1746440406868,0.27835429,94499.0,94498.0,0.38490599]
[1746440407070,0.28035429,94499.0,94498.0,0.38790599]
[1746440407272,0.27835429,94499.0,94498.0,0.38790599]
[1746440407464,0.28035429,94499.0,94498.0,0.39090599]
[1746440408172,0.1998371,94499.0,94498.0,0.39090599]
[1746440410373,0.14755781,94499.0,94498.0,0.39090599]
[1746440410867,0.14755781,94499.0,94498.0,0.49672599]
[1746440411072,0.10977661,94503.0,94502.0,0.2116251]
[1746440411270,0.10977661,94503.0,94502.0,0.5724251]
[1746440411780,0.10977661,94503.0,94502.0,0.6340251]
[1746440412164,0.10977661,94503.0,94502.0,0.7540251]
[1746440413064,0.11177661,94503.0,94502.0,0.7580251]
[1746440413468,0.11177661,94503.0,94502.0,0.7620251]
[1746440413469,0.11377661,94503.0,94502.0,0.7620251]
[1746440414366,0.004,94503.0,94502.0,0.8678411]
[1746440424076,0.004,94503.0,94502.0,0.7620251]
[1746440427486,0.0362,94503.0,94502.0,0.7620251]
[1746440428476,0.0362,94503.0,94502.0,0.7004251]
[1746440428877,0.2792229,94503.0,94502.0,0.7004251]
[1746440429177,0.0676,94503.0,94502.0,0.7004251]
[1746440442086,0.21451394,94505.0,94504.0,0.2116206]
[1746440442282,0.0613,94519.0,94518.0,0.2115893]
[1746440442481,0.0306,94524.0,94519.0,0.211587]
[1746440442672,0.0613,94524.0,94519.0,0.603787]
[1746440443179,0.00952058,94520.0,94519.0,0.723787]
[1746440443380,0.0015,94520.0,94519.0,0.723787]
[1746440443883,0.0015,94520.0,94519.0,0.73429668]
[1746440444087,0.0015,94520.0,94519.0,0.723787]
[1746440444681,0.0035,94520.0,94519.0,0.698387]
[1746440444990,0.0055,94520.0,94519.0,0.704387]
[1746440446987,0.01351432,94520.0,94519.0,0.704387]
[1746440447186,0.0055,94520.0,94519.0,0.704387]
[1746440447386,0.0055,94520.0,94519.0,0.736387]
[1746440451694,0.01341348,94520.0,94519.0,0.736387]
[1746440456789,0.22499828,94520.0,94519.0,0.69446128]
[1746440457197,0.22499828,94520.0,94519.0,0.57446128]
[1746440459902,0.2116179,94506.0,94502.0,0.0529057]
[1746440460102,0.0301,94505.0,94504.0,0.2116206]
[1746440460402,0.0619,94505.0,94504.0,0.2645255]
[1746440461102,0.3063184,94505.0,94504.0,0.3845255]
[1746440461302,0.3083184,94505.0,94504.0,0.3905255]
[1746440462003,0.3103184,94505.0,94504.0,0.3965255]
[1746440462310,0.3103184,94505.0,94504.0,0.2236206]
[1746440464608,0.3103184,94505.0,94504.0,0.012]
[1746440464913,0.4161344,94505.0,94504.0,0.012]
[1746440465505,0.52194946,94505.0,94504.0,0.012]
[1746440465714,0.52194946,94505.0,94504.0,0.00207146]
[1746440466106,0.43033106,94505.0,94497.0,0.00158733]
[1746440466402,0.5724341,94498.0,94497.0,0.00158733]
[1746440466801,0.6782581,94498.0,94497.0,0.21322363]
[1746440467117,0.904081,94498.0,94497.0,0.21322363]
[1746440467410,0.967881,94498.0,94497.0,0.00258733]
[1746440467610,0.967881,94498.0,94497.0,0.001]
[1746440467998,0.210643,94494.0,94493.0,0.2116432]
[1746440468502,0.316471,94494.0,94493.0,0.2116432]
[1746440468702,0.4222939,94494.0,94493.0,0.2116432]
[1746440468903,0.4841939,94494.0,94493.0,0.2116432]
[1746440469112,0.6041939,94494.0,94493.0,0.2116432]
[1746440469315,0.2116542,94489.0,94488.0,0.2116539]
[1746440469610,0.5724542,94489.0,94488.0,0.2116539]
[1746440470204,0.6335542,94489.0,94488.0,0.3316539]
[1746440470607,0.6355542,94489.0,94488.0,0.3316539]
[1746440471615,0.6335542,94489.0,94488.0,0.3316539]
[1746440471814,0.6375542,94489.0,94488.0,0.3316539]
[1746440472516,0.6355542,94489.0,94488.0,0.3316539]
[1746440472714,0.6375542,94489.0,94488.0,0.3316539]
[1746440477215,0.2767542,94489.0,94488.0,0.3316539]
[1746440485922,0.2767542,94489.0,94488.0,0.12]
[1746440486122,0.2116699,94482.0,94481.0,0.0324]
[1746440486418,0.2116833,94476.0,94471.0,0.0529234]
[1746440486722,0.2116833,94476.0,94475.0,0.21274408]
[1746440487225,0.2116833,94476.0,94475.0,0.33274408]
[1746440487420,0.2749833,94476.0,94475.0,0.33274408]
[1746440487924,0.2779833,94476.0,94475.0,0.33274408]
[1746440488227,0.2799833,94476.0,94475.0,0.12105848]
[1746440488421,0.29047269,94476.0,94475.0,0.12105848]
[1746440489115,0.29047269,94476.0,94475.0,0.33274408]
[1746440490122,0.3963207,94476.0,94475.0,0.33274408]
[1746440493521,0.3963207,94476.0,94475.0,0.12105848]
[1746440494125,0.29047269,94476.0,94475.0,0.12105848]
[1746440494631,0.29047269,94476.0,94475.0,0.15365848]
[1746440497223,0.29047269,94476.0,94475.0,0.12105848]
[1746440497423,0.39632023,94476.0,94475.0,0.12105848]
[1746440505134,0.39632023,94476.0,94475.0,0.15265848]
[1746440509133,0.75712023,94476.0,94475.0,0.15265848]
[1746440510237,0.2117013,94469.0,94467.0,0.05451315]
[1746440510438,0.6042013,94468.0,94467.0,0.26621665]
[1746440510733,0.6361013,94468.0,94467.0,0.26621665]
[1746440511138,0.6361013,94468.0,94467.0,0.38621665]
[1746440512442,0.6361013,94468.0,94467.0,0.41901665]
[1746440512641,0.6391013,94468.0,94467.0,0.41901665]
[1746440512942,0.6421013,94468.0,94467.0,0.41901665]
[1746440513143,0.64987349,94468.0,94467.0,0.41901665]
[1746440517541,0.61797349,94468.0,94467.0,0.41901665]
[1746440522553,0.64987349,94468.0,94467.0,0.41901665]
[1746440523746,0.64987349,94468.0,94467.0,0.15438785]
[1746440523943,0.64987349,94468.0,94467.0,0.36609135]
[1746440524834,0.64987349,94468.0,94467.0,0.39859135]
[1746440531542,0.64987349,94468.0,94467.0,0.18688785]
[1746440531748,0.64987349,94468.0,94467.0,0.15438785]
[1746440531948,0.64987349,94468.0,94467.0,0.12158785]
[1746440532146,0.69987349,94468.0,94467.0,0.12158785]
[1746440533046,0.69987349,94468.0,94467.0,0.15328785]
[1746440534144,0.69987349,94468.0,94467.0,0.12158785]
[1746440535543,0.80573,94468.0,94467.0,0.12158785]
[1746440545756,0.80573,94468.0,94467.0,0.33329135]
[1746440546657,0.80573,94468.0,94467.0,0.12158785]
[1746440547161,0.80573,94468.0,94467.0,0.15468785]
[1746440552159,0.75573,94468.0,94467.0,0.36639135]
[1746440553067,0.75573,94468.0,94467.0,0.15468785]
[1746440557261,0.80573,94468.0,94467.0,0.15468785]
[1746440562453,0.80573,94468.0,94467.0,0.14475519]
[1746440564367,1.16653,94468.0,94467.0,0.14475519]
[1746440569374,0.2117304,94455.0,94454.0,0.3175866]
[1746440570376,0.2147304,94455.0,94454.0,0.4375866]
[1746440571075,0.2177304,94455.0,94454.0,0.4375866]
[1746440571275,0.2177304,94455.0,94454.0,0.4700866]
[1746440571770,0.2177304,94455.0,94454.0,0.4171535]
[1746440574476,0.2177304,94455.0,94454.0,0.3642204]
[1746440584975,0.006,94455.0,94454.0,0.3642204]
[1746440585173,0.006,94455.0,94454.0,0.3971204]
[1746440588575,0.2177304,94455.0,94454.0,0.3971204]
[1746440591983,0.006,94455.0,94454.0,0.3971204]
[1746440594483,0.2177304,94455.0,94454.0,0.3971204]
[1746440594670,0.006,94455.0,94454.0,0.3971204]
[1746440604375,0.00777219,94468.0,94466.0,0.0529264]
[1746440604576,0.2116914,94473.0,94472.0,0.2116923]
[1746440605177,0.2116914,94473.0,94472.0,0.12]
[1746440605378,0.2425914,94473.0,94472.0,0.12]
[1746440605788,0.2730914,94473.0,94472.0,0.12]
[1746440606188,0.2760914,94473.0,94472.0,0.12]
[1746440606891,0.28623146,94473.0,94472.0,0.12]
[1746440607387,0.63382392,94473.0,94472.0,0.12]
[1746440608192,0.2117013,94468.0,94467.0,0.211703]
[1746440608379,0.5725013,94468.0,94467.0,0.211703]
[1746440609094,0.6678013,94468.0,94467.0,0.331703]
[1746440609285,0.6708013,94468.0,94467.0,0.331703]
[1746440610495,0.6738013,94468.0,94467.0,0.331703]
[1746440620193,0.6738013,94468.0,94467.0,0.12]
[1746440620590,0.6738013,94468.0,94467.0,0.3317035]
[1746440622404,0.6738013,94468.0,94467.0,0.12]
[1746440623800,0.6738013,94468.0,94467.0,0.3317035]
[1746440624801,0.6738013,94468.0,94467.0,0.12]
[1746440625899,0.6738013,94468.0,94467.0,0.3317035]
[1746440626202,0.6738013,94468.0,94467.0,0.12]
[1746440626401,0.77965781,94468.0,94467.0,0.12]
[1746440627697,0.77965781,94468.0,94467.0,0.3317035]
[1746440634709,0.77965781,94468.0,94467.0,0.32177141]
[1746440645128,0.77965781,94468.0,94467.0,0.11006791]
[1746440645629,0.77965781,94468.0,94467.0,0.10013582]
[1746440645928,0.77965781,94468.0,94467.0,0.13143582]
[1746440646830,0.77965781,94468.0,94467.0,0.34313932]
[1746440651640,0.74725781,94468.0,94467.0,0.34313932]
[1746440652234,0.38645781,94468.0,94467.0,0.34313932]
[1746440657237,0.17475651,94468.0,94467.0,0.34313932]
[1746440657743,0.2806013,94468.0,94467.0,0.34313932]
[1746440664444,0.46879465,94468.0,94467.0,0.34313932]
[1746440671346,0.2806013,94468.0,94467.0,0.34313932]
[1746440685555,0.2806013,94468.0,94467.0,0.3596919]
[1746440688751,0.2806013,94468.0,94467.0,0.3283919]
[1746440688960,0.2806013,94468.0,94467.0,0.32839183]
[1746440690646,0.26788897,94468.0,94467.0,0.32839183]
[1746440691652,0.25517664,94468.0,94467.0,0.32839183]
[1746440693449,0.25517664,94468.0,94467.0,0.35889183]
[1746440694661,0.22975197,94468.0,94467.0,0.35889183]
[1746440694860,0.22975197,94468.0,94467.0,0.39039183]
[1746440696662,0.33198537,94468.0,94467.0,0.39039183]
[1746440699565,0.22975197,94468.0,94467.0,0.39039183]
[1746440700664,0.21703942,94468.0,94467.0,0.39039183]
[1746440700964,0.21703942,94468.0,94467.0,0.39039212]
[1746440701669,0.20432687,94468.0,94467.0,0.39039212]
[1746440702665,0.17890177,94468.0,94467.0,0.39039212]
[1746440703766,0.14076412,94468.0,94467.0,0.39039212]
[1746440705973,0.14076412,94468.0,94467.0,0.39039211]
[1746440707775,0.24662063,94468.0,94467.0,0.14718861]
[1746440709775,0.20848193,94468.0,94467.0,0.14718861]
[1746440710783,0.10585651,94468.0,94467.0,0.14718861]
[1746440711081,0.10585651,94468.0,94467.0,0.14718907]
[1746440711280,0.31755781,94468.0,94467.0,0.35889257]
[1746440711680,0.30484491,94468.0,94467.0,0.35889257]
[1746440714580,0.30484491,94468.0,94467.0,0.38919257]
[1746440714786,0.18826027,94471.0,94470.0,0.2116968]
[1746440715085,0.18826027,94471.0,94470.0,0.22825005]
[1746440715286,0.39995477,94471.0,94470.0,0.22825005]
[1746440715485,0.18826027,94471.0,94470.0,0.22825005]
[1746440715675,0.18826027,94471.0,94470.0,0.29025005]
[1746440715878,0.15312619,94471.0,94470.0,0.29025005]
[1746440716083,0.15512619,94471.0,94470.0,0.41125005]
[1746440716793,0.10216217,94471.0,94470.0,0.41125005]
[1746440717285,0.005,94471.0,94470.0,0.41125005]
[1746440718190,0.2166945,94471.0,94470.0,0.41125005]
[1746440718782,0.191272,94471.0,94470.0,0.41125005]
[1746440719780,0.13830839,94471.0,94470.0,0.41124792]
[1746440720690,0.12559713,94471.0,94470.0,0.41124792]
[1746440721687,0.11288587,94471.0,94470.0,0.41124792]
[1746440721883,0.2116945,94471.0,94470.0,0.41124792]
[1746440722693,0.15873089,94471.0,94470.0,0.41124792]
[1746440724795,0.15873089,94471.0,94470.0,0.41124799]
[1746440725794,0.10576709,94471.0,94470.0,0.41124799]
[1746440726798,0.2116945,94471.0,94470.0,0.41124799]
[1746440727800,0.17356056,94471.0,94470.0,0.41124799]
[1746440728904,0.12059676,94471.0,94470.0,0.41124799]
[1746440730698,0.10788545,94471.0,94470.0,0.41124799]
[1746440731598,0.10788545,94471.0,94470.0,0.41124798]
[1746440731794,0.2116945,94471.0,94470.0,0.41124798]
[1746440733799,0.17356056,94471.0,94470.0,0.41124798]
[1746440734700,0.09517414,94471.0,94470.0,0.41124798]
[1746440736394,0.24204893,94472.0,94471.0,0.2116945]
[1746440736597,0.24204893,94472.0,94471.0,0.29154568]
[1746440737198,0.24204893,94472.0,94471.0,0.41154568]
[1746440737591,0.24704893,94472.0,94471.0,0.41754568]
[1746440737887,0.19408531,94472.0,94471.0,0.4009945]
[1746440738199,0.19408531,94472.0,94471.0,0.41754563]
[1746440739696,0.50207761,94472.0,94471.0,0.41754563]
[1746440739899,0.4639438,94472.0,94471.0,0.41754563]
[1746440740700,0.3982689,94472.0,94471.0,0.41754563]
[1746440741800,0.38555763,94472.0,94471.0,0.41754563]
[1746440742697,0.36013509,94472.0,94471.0,0.41754563]
[1746440743002,0.36013509,94472.0,94471.0,0.38674563]
[1746440743700,0.30717146,94472.0,94471.0,0.38674563]
[1746440745903,0.26903765,94472.0,94471.0,0.38674563]
[1746440746706,0.21607402,94472.0,94471.0,0.38674563]
[1746440749506,0.0963,94472.0,94471.0,0.38674563]
[1746440749706,0.04333638,94472.0,94471.0,0.38674563]
[1746440750897,0.00520257,94472.0,94471.0,0.38674563]
[1746440751708,0.00063136,94473.0,94472.0,0.2116923]
[1746440751903,0.1778341,94475.0,94474.0,0.2116878]
[1746440752206,0.1778341,94475.0,94474.0,0.34823893]
[1746440753312,0.1798341,94475.0,94474.0,0.35323893]
[1746440754303,0.12687048,94475.0,94474.0,0.35323893]
[1746440754703,0.12887048,94475.0,94474.0,0.35723893]
[1746440755910,0.13673448,94475.0,94474.0,0.35723893]
[1746440757110,0.13673448,94475.0,94474.0,0.42253893]
[1746440757298,0.08377085,94475.0,94474.0,0.42253893]
[1746440757812,0.04563704,94475.0,94474.0,0.41260825]
[1746440758812,0.0202145,94475.0,94474.0,0.41260825]
[1746440760313,0.03185087,94477.0,94476.0,0.2116833]
[1746440760519,0.03965688,94477.0,94476.0,0.22823443]
[1746440760810,0.02694561,94477.0,94476.0,0.22823443]
[1746440761015,0.13279203,94477.0,94476.0,0.22823443]
[1746440761312,0.13479203,94477.0,94476.0,0.35223443]
[1746440761512,0.13679203,94477.0,94476.0,0.35723443]
[1746440761700,0.11765243,94477.0,94476.0,0.35723443]
[1746440763305,0.0646888,94477.0,94476.0,0.35723443]
[1746440763811,0.02655499,94477.0,94476.0,0.35723443]
[1746440764818,0.02655499,94477.0,94476.0,0.42023443]
[1746440765517,0.03450002,94477.0,94476.0,0.42023443]
[1746440766315,0.00794503,94477.0,94476.0,0.42023443]
[1746440766508,0.2116811,94477.0,94476.0,0.47315523]
[1746440766708,0.31752752,94477.0,94476.0,0.47315523]
[1746440766916,0.29210498,94477.0,94476.0,0.47315523]
[1746440769410,0.23914137,94477.0,94476.0,0.47315523]
[1746440769811,0.208781,94477.0,94476.0,0.47315523]
[1746440770819,0.11361985,94477.0,94476.0,0.47315523]
[1746440771025,0.32530095,94477.0,94476.0,0.47315523]
[1746440771722,0.31258969,94477.0,94476.0,0.47315523]
[1746440772021,0.31258969,94477.0,94476.0,0.47315522]
[1746440772415,0.25962608,94477.0,94476.0,0.47315522]
[1746440773523,0.25962608,94477.0,94476.0,0.46322455]
[1746440774821,0.23420355,94477.0,94476.0,0.46322455]
[1746440775420,0.18123994,94477.0,94476.0,0.46322455]
[1746440775621,0.28708636,94477.0,94476.0,0.46322455]
[1746440775822,0.24895256,94477.0,94476.0,0.46322455]
[1746440778311,0.19598895,94477.0,94476.0,0.46322455]
[1746440778517,0.20388949,94477.0,94476.0,0.46322455]
[1746440780819,0.11374696,94477.0,94476.0,0.46322455]
[1746440781425,0.06078335,94477.0,94476.0,0.46322455]
[1746440781625,0.27246445,94477.0,94476.0,0.45329388]
[1746440781925,0.22161939,94477.0,94476.0,0.45329388]
[1746440782826,0.19619686,94477.0,94476.0,0.45329388]
[1746440783122,0.30204328,94477.0,94476.0,0.45329388]
[1746440783319,0.3098334,94477.0,94476.0,0.45329388]
[1746440783921,0.3098334,94477.0,94476.0,0.43674276]
[1746440784126,0.3098334,94477.0,94476.0,0.45329388]
[1746440784426,0.25686979,94477.0,94476.0,0.45329388]
[1746440787333,0.25686979,94477.0,94476.0,0.45329404]
[1746440787627,0.2039057,94477.0,94476.0,0.45329404]
[1746440787827,0.11363654,94477.0,94476.0,0.45329404]
[1746440788624,0.32531764,94477.0,94476.0,0.45329404]
[1746440790631,0.27235355,94477.0,94476.0,0.45329404]
[1746440790830,0.2342194,94477.0,94476.0,0.45329404]
[1746440791734,0.22150802,94477.0,94476.0,0.45329404]
[1746440793534,0.16854393,94477.0,94476.0,0.45329404]
[1746440793726,0.27439035,94477.0,94476.0,0.45329404]
[1746440794034,0.23625621,94477.0,94476.0,0.45329404]
[1746440794231,0.23625621,94477.0,94476.0,0.45329403]
[1746440795733,0.23625621,94477.0,94476.0,0.44336327]
[1746440796526,0.10584642,94477.0,94476.0,0.44336327]
[1746440796728,0.31752752,94477.0,94476.0,0.44336327]
[1746440797234,0.32546858,94477.0,94476.0,0.44336327]
[1746440798838,0.30004583,94477.0,94476.0,0.44336327]
[1746440799436,0.24708175,94477.0,94476.0,0.44336327]